fUSD/lending_fUSD_20240426
["ID","MTS","AMOUNT","RATE_DAILY","PERIOD"]
[323584117,1714096242139,-916.57,0.00010958,2]
[323584118,1714096242150,-500.0,0.00010958,2]
[323584119,1714096242160,-504.09540542,0.00010958,2]
[323584120,1714096242169,-500.0,0.00010958,2]
[323584121,1714096242179,-500.0,0.00010958,2]
[323584122,1714096242189,-504.50181633,0.00010958,2]
[323584123,1714096242198,-505.70356885,0.00010958,2]
[323584124,1714096242209,-500.0,0.00010958,2]
[323584125,1714096242219,-566.47246305,0.00010958,2]
[323584126,1714096242228,-500.0,0.00010958,2]
[323584127,1714096242238,-1480.99,0.00010958,2]
[323584128,1714096242247,-503.99173862,0.00010958,2]
[323584129,1714096242256,-593.35,0.00010958,2]
[323584130,1714096242269,-500.0,0.00010958,2]
[323584131,1714096242278,-1280.42,0.00010958,2]
[323584132,1714096242287,-500.0,0.00010958,2]
[323584133,1714096242296,-500.0,0.00010958,2]
[323584134,1714096242306,-500.0,0.00010958,2]
[323584135,1714096242316,-500.0,0.00010958,2]
[323584136,1714096242325,-500.0,0.00010958,2]
[323584137,1714096242334,-500.0,0.00010958,2]
[323584138,1714096242343,-849.55,0.00010958,2]
[323584139,1714096242355,-500.0,0.00010958,2]
[323584140,1714096242365,-562.52,0.00010958,2]
[323584141,1714096242375,-2431.0,0.00010958,2]
[323584142,1714096242384,-500.0,0.00010958,2]
[323584143,1714096242394,-500.0,0.00010958,2]
[323584144,1714096242403,-881.59,0.00010958,2]
[323584145,1714096242413,-500.0,0.00010958,2]
[323584146,1714096242423,-500.0,0.00010958,2]
[323584147,1714096242432,-1351.64,0.00010958,2]
[323584148,1714096242443,-502.82381937,0.00010958,2]
[323584149,1714096242453,-3253.69,0.00010958,2]
[323584150,1714096242466,-506.38775789,0.00010958,2]
[323584151,1714096242476,-500.0,0.00010958,2]
[323584152,1714096242486,-772.25,0.00010958,2]
[323584153,1714096242496,-500.0,0.00010958,2]
[323584154,1714096242506,-500.0,0.00010958,2]
[323584155,1714096242516,-505.4,0.00010958,2]
[323584156,1714096242526,-500.0,0.00010958,2]
[323584157,1714096242537,-535.42,0.00010958,2]
[323584158,1714096242547,-500.0,0.00010958,2]
[323584159,1714096242557,-500.0,0.00010958,2]
[323584160,1714096242568,-500.0,0.00010958,2]
[323584161,1714096242578,-865.46,0.00010958,2]
[323584162,1714096242587,-2552.88,0.00010958,2]
[323584163,1714096242596,-927.26,0.00010958,2]
[323584164,1714096242606,-500.0,0.00010958,2]
[323584165,1714096242615,-2199.25,0.00010958,2]
[323584166,1714096242626,-500.0,0.00010958,2]
[323584167,1714096242636,-500.0,0.00010958,2]
[323584168,1714096242647,-538.48,0.00010958,2]
[323584169,1714096242657,-500.0,0.00010958,2]
[323584170,1714096242668,-500.0,0.00010958,2]
[323584171,1714096242679,-500.0,0.00010958,2]
[323584172,1714096242689,-314.62712834,0.00010958,2]
[323584173,1714096242700,-500.0,0.00010958,2]
[323584174,1714096242710,-668.7,0.00010958,2]
[323584175,1714096242721,-500.0,0.00010958,2]
[323584176,1714096242730,-611.05,0.00010958,2]
[323584177,1714096242740,-500.0,0.00010958,2]
[323584178,1714096242750,-500.0,0.00010958,2]
[323584179,1714096242761,-500.0,0.00010958,2]
[323584180,1714096242770,-500.0,0.00010958,2]
[323584181,1714096242780,-500.0,0.00010958,2]
[323584182,1714096242789,-2762.23,0.00010958,2]
[323584183,1714096242799,-500.0,0.00010958,2]
[323584184,1714096242808,-597.49,0.00010958,2]
[323584185,1714096242818,-500.0,0.00010958,2]
[323584186,1714096242827,-628.71,0.00010958,2]
[323584187,1714096242836,-500.0,0.00010958,2]
[323584188,1714096242846,-500.0,0.00010958,2]
[323584189,1714096242855,-500.0,0.00010958,2]
[323584190,1714096242865,-500.0,0.00010958,2]
[323584191,1714096242876,-2386.7,0.00010958,2]
[323584192,1714096242887,-500.0,0.00010958,2]
[323584193,1714096242898,-500.0,0.00010958,2]
[323584194,1714096242908,-5865.01,0.00010958,2]
[323584195,1714096242919,-500.0,0.00010958,2]
[323584196,1714096242929,-500.0,0.00010958,2]
[323584197,1714096242940,-530.44,0.00010958,2]
[323584198,1714096242950,-1231.98,0.00010958,2]
[323584199,1714096242964,-866.94,0.00010958,2]
[323584200,1714096242974,-500.0,0.00010958,2]
[323584201,1714096242982,-508.90534951,0.00010958,2]
[323584202,1714096242991,-532.45933342,0.00010958,2]
[323584203,1714096243006,-500.0,0.00010958,2]
[323584204,1714096243015,-682.78,0.00010958,2]
[323584206,1714096243025,-547.99,0.00010958,2]
[323584208,1714096243034,-529.52582188,0.00010958,2]
[323584209,1714096243044,-500.0,0.00010958,2]
[323584211,1714096243053,-1420.66,0.00010958,2]
[323584213,1714096243062,-952.74,0.00010958,2]
[323584215,1714096243071,-500.0,0.00010958,2]
[323584217,1714096243081,-507.60332723,0.00010958,2]
[323584219,1714096243090,-500.0,0.00010958,2]
[323584222,1714096243101,-1029.6,0.00010958,2]
[323584224,1714096243109,-500.0,0.00010958,2]
[323584226,1714096243119,-506.39757359,0.00010958,2]
[323584227,1714096243128,-850.4,0.00010959,3]
[323584228,1714096243137,-465.9,0.00010959,2]
[323584230,1714096243146,-150.0,0.00010959,2]
[323584231,1714096243155,-14239.06,0.00010959,2]
[323584232,1714096243164,-1943.36,0.0001096,2]
[323584233,1714096243173,-749.70504623,0.00011,2]
[323584235,1714096243182,-150.0,0.00011005,2]
[323584237,1714096243191,-150.0,0.00011027,2]
[323584240,1714096243200,-150.0,0.00011068,2]
[323584243,1714096243209,-1210.5139,0.00011132,2]
[323584245,1714096243218,-681.3542,0.00011132,2]
[323584248,1714096243227,-150.0,0.00011175,2]
[323584251,1714096243237,-155.39633959,0.00011222,2]
[323584252,1714096243246,-150.0,0.00011224,2]
[323584253,1714096243255,-557.52046363,0.00011224,2]
[323584254,1714096243266,-385.48256862,0.0001123,2]
[323584255,1714096243276,-157.55912926,0.0001123,2]
[323584256,1714096243285,-500.0,0.00011231,2]
[323584257,1714096243295,-717.13,0.00011231,2]
[323584258,1714096243305,-500.0,0.00011231,2]
[323584259,1714096243314,-500.0,0.00011231,2]
[323584260,1714096243323,-500.0,0.00011231,2]
[323584261,1714096243333,-500.0,0.00011231,2]
[323584262,1714096243342,-500.0,0.00011231,2]
[323584263,1714096243351,-500.0,0.00011231,2]
[323584264,1714096243362,-500.0,0.00011231,2]
[323584265,1714096243371,-500.0,0.00011231,2]
[323584266,1714096243380,-500.0,0.00011231,2]
[323584267,1714096243389,-500.0,0.00011231,2]
[323584268,1714096243398,-617.94,0.00011231,2]
[323584269,1714096243407,-500.0,0.00011231,2]
[323584270,1714096243416,-500.0,0.00011231,2]
[323584271,1714096243425,-500.0,0.00011231,2]
[323584272,1714096243436,-500.0,0.00011231,2]
[323584273,1714096243445,-500.0,0.00011231,2]
[323584274,1714096243454,-500.0,0.00011231,2]
[323584275,1714096243471,-500.0,0.00011231,2]
[323584276,1714096243480,-500.0,0.00011231,2]
[323584277,1714096243489,-500.0,0.00011231,2]
[323584278,1714096243499,-500.0,0.00011231,2]
[323584279,1714096243507,-500.0,0.00011231,2]
[323584280,1714096243517,-500.0,0.00011231,2]
[323584281,1714096243526,-500.0,0.00011231,2]
[323584282,1714096243535,-500.0,0.00011231,2]
[323584283,1714096243544,-507.59832257,0.00011231,2]
[323584284,1714096243554,-500.0,0.00011231,2]
[323584285,1714096243562,-500.0,0.00011231,2]
[323584286,1714096243571,-500.0,0.00011231,2]
[323584287,1714096243581,-500.0,0.00011231,2]
[323584288,1714096243590,-500.0,0.00011231,2]
[323584289,1714096243599,-500.0,0.00011231,2]
[323584290,1714096243608,-500.0,0.00011231,2]
[323584291,1714096243618,-500.0,0.00011231,2]
[323584292,1714096243627,-500.0,0.00011231,2]
[323584293,1714096243638,-500.0,0.00011231,2]
[323584294,1714096243647,-500.0,0.00011231,2]
[323584295,1714096243656,-437.74023283,0.00011231,2]
[323584296,1714096243666,-500.0,0.00011231,2]
[323584297,1714096243675,-500.0,0.00011231,2]
[323584298,1714096243684,-503.10077948,0.00011231,2]
[323584299,1714096243693,-506.08760606,0.00011231,2]
[323584300,1714096243703,-512.00980664,0.00011231,2]
[323584301,1714096243717,-500.0,0.00011232,2]
[323584302,1714096243726,-8513.88892551,0.00011232,2]
[323584303,1714096243735,-500.0,0.00011232,2]
[323584304,1714096243745,-500.0,0.00011232,2]
[323584305,1714096243754,-500.0,0.00011232,2]
[323584306,1714096243763,-274.34244575,0.00011232,2]
[323584307,1714096243773,-500.0,0.00011232,2]
[323584308,1714096243782,-503.88,0.00011232,2]
[323584309,1714096243791,-500.0,0.00011232,2]
[323584310,1714096243801,-500.0,0.00011232,2]
[323584311,1714096243812,-500.0,0.00011232,2]
[323584312,1714096243821,-500.0,0.00011232,2]
[323584313,1714096243831,-500.0,0.00011232,2]
[323584314,1714096243841,-500.0,0.00011232,2]
[323584315,1714096243850,-500.0,0.00011232,2]
[323584316,1714096243860,-500.0,0.00011232,2]
[323584317,1714096243870,-500.0,0.00011232,2]
[323584318,1714096243879,-500.0,0.00011232,2]
[323584319,1714096243889,-767.52,0.00011232,2]
[323584320,1714096243898,-500.0,0.00011232,2]
[323584321,1714096243908,-860.44,0.00011232,2]
[323584322,1714096243918,-500.0,0.00011232,2]
[323584323,1714096243927,-500.0,0.00011232,2]
[323584324,1714096243937,-814.5,0.00011232,2]
[323584325,1714096243946,-1089.68,0.00011232,2]
[323584326,1714096243956,-270.78318925,0.00011232,2]
[323584327,1714096243969,-500.0,0.00011232,2]
[323584328,1714096243979,-598.34,0.00011232,2]
[323584329,1714096243989,-500.0,0.00011232,2]
[323584330,1714096243999,-500.0,0.00011232,2]
[323584331,1714096244009,-500.0,0.00011232,2]
[323584332,1714096244019,-555.49034131,0.00011232,2]
[323584333,1714096244030,-500.0,0.00011232,2]
[323584334,1714096244040,-500.0,0.00011232,2]
[323584335,1714096244050,-500.0,0.00011232,2]
[323584336,1714096244059,-502.58357025,0.00011232,2]
[323584337,1714096244069,-700.93,0.00011232,2]
[323584338,1714096244080,-500.0,0.00011232,2]
[323584339,1714096244091,-500.0,0.00011232,2]
[323584340,1714096244101,-518.66005747,0.00011232,2]
[323584341,1714096244111,-500.0,0.00011232,2]
[323584342,1714096244122,-534.27,0.00011232,2]
[323584343,1714096244132,-838.22,0.00011232,2]
[323584344,1714096244142,-805.71,0.00011232,2]
[323584345,1714096244153,-500.0,0.00011232,2]
[323584346,1714096244163,-500.0,0.00011232,2]
[323584347,1714096244173,-500.0,0.00011232,2]
[323584348,1714096244183,-500.0,0.00011232,2]
[323584349,1714096244194,-500.0,0.00011232,2]
[323584350,1714096244204,-500.0,0.00011232,2]
[323584351,1714096244217,-500.0,0.00011232,2]
[323584352,1714096244228,-500.0,0.00011232,2]
[323584353,1714096244238,-500.0,0.00011232,2]
[323584354,1714096244249,-500.0,0.00011232,2]
[323584355,1714096244259,-500.0,0.00011232,2]
[323584356,1714096244269,-500.0,0.00011232,2]
[323584357,1714096244279,-500.0,0.00011232,2]
[323584358,1714096244290,-500.0,0.00011232,2]
[323584359,1714096244301,-500.0,0.00011232,2]
[323584360,1714096244311,-500.0,0.00011232,2]
[323584361,1714096244321,-500.0,0.00011232,2]
[323584362,1714096244332,-500.0,0.00011232,2]
[323584363,1714096244343,-549.01,0.00011232,2]
[323584364,1714096244353,-500.0,0.00011232,2]
[323584365,1714096244362,-500.0,0.00011232,2]
[323584366,1714096244371,-500.0,0.00011232,2]
[323584367,1714096244380,-641.49,0.00011232,2]
[323584368,1714096244390,-500.0,0.00011232,2]
[323584369,1714096244401,-500.0,0.00011232,2]
[323584370,1714096244411,-500.0,0.00011232,2]
[323584371,1714096244422,-500.0,0.00011232,2]
[323584372,1714096244433,-500.0,0.00011232,2]
[323584373,1714096244444,-500.0,0.00011232,2]
[323584374,1714096244455,-994.62,0.00011232,2]
[323584375,1714096244468,-803.4,0.00011232,2]
[323584376,1714096244479,-500.0,0.00011232,2]
[323584377,1714096244490,-500.0,0.00011232,2]
[323584378,1714096244501,-500.0,0.00011232,2]
[323584379,1714096244512,-500.0,0.00011232,2]
[323584380,1714096244523,-500.0,0.00011232,2]
[323584381,1714096244532,-500.0,0.00011232,2]
[323584382,1714096244543,-500.0,0.00011232,2]
[323584383,1714096244554,-500.0,0.00011232,2]
[323584384,1714096244565,-500.0,0.00011232,2]
[323584385,1714096244575,-500.0,0.00011232,2]
[323584386,1714096244585,-500.0,0.00011232,2]
[323584387,1714096244596,-500.0,0.00011232,2]
[323584388,1714096244607,-500.0,0.00011232,2]
[323584389,1714096244618,-500.0,0.00011232,2]
[323584390,1714096244629,-371.37,0.00011232,2]
[323584391,1714096244639,-505.30222776,0.00011232,2]
[323584392,1714096244650,-500.0,0.00011232,2]
[323584393,1714096244661,-440.44573958,0.00011232,2]
[323584394,1714096244672,-500.0,0.00011232,2]
[323584395,1714096244683,-500.0,0.00011232,2]
[323584396,1714096244693,-290.0634399,0.00011232,2]
[323584397,1714096244705,-505.50496906,0.00011232,2]
[323584398,1714096244718,-500.0,0.00011232,2]
[323584399,1714096244728,-500.0,0.00011232,2]
[323584400,1714096244739,-500.0,0.00011232,2]
[323584401,1714096244749,-500.0,0.00011232,2]
[323584402,1714096244760,-500.0,0.00011232,2]
[323584403,1714096244770,-500.0,0.00011232,2]
[323584404,1714096244781,-500.0,0.00011232,2]
[323584405,1714096244791,-500.0,0.00011232,2]
[323584406,1714096244802,-500.0,0.00011232,2]
[323584407,1714096244814,-500.0,0.00011232,2]
[323584408,1714096244825,-150.11640786,0.00011232,2]
[323584409,1714096244835,-500.0,0.00011232,2]
[323584410,1714096244846,-500.0,0.00011232,2]
[323584411,1714096244856,-667.92,0.00011232,2]
[323584412,1714096244868,-500.0,0.00011232,2]
[323584413,1714096244879,-500.0,0.00011232,2]
[323584414,1714096244889,-504.52265819,0.00011232,2]
[323584415,1714096244901,-600.26,0.00011232,2]
[323584416,1714096244912,-500.0,0.00011232,2]
[323584417,1714096244923,-500.0,0.00011232,2]
[323584418,1714096244933,-500.0,0.00011232,2]
[323584419,1714096244943,-500.0,0.00011232,2]
[323584420,1714096244953,-500.0,0.00011232,2]
[323584421,1714096244962,-500.0,0.00011232,2]
[323584422,1714096244972,-500.0,0.00011232,2]
[323584423,1714096244981,-500.0,0.00011232,2]
[323584424,1714096244991,-500.0,0.00011232,2]
[323584425,1714096245001,-500.0,0.00011232,2]
[323584426,1714096245011,-500.0,0.00011232,2]
[323584427,1714096245021,-621.72,0.00011232,2]
[323584428,1714096245031,-500.0,0.00011232,2]
[323584429,1714096245040,-500.0,0.00011232,2]
[323584430,1714096245050,-500.0,0.00011232,2]
[323584431,1714096245060,-545.84,0.00011232,2]
[323584432,1714096245070,-500.0,0.00011232,2]
[323584433,1714096245080,-500.0,0.00011232,2]
[323584434,1714096245090,-500.0,0.00011232,2]
[323584435,1714096245100,-500.0,0.00011232,2]
[323584436,1714096245110,-500.0,0.00011232,2]
[323584437,1714096245120,-512.3348404,0.00011232,2]
[323584438,1714096245129,-500.0,0.00011232,2]
[323584439,1714096245140,-536.0346466,0.00011232,2]
[323584440,1714096245149,-509.42397971,0.00011232,2]
[323584441,1714096245159,-500.0,0.00011232,2]
[323584442,1714096245168,-715.17,0.00011232,2]
[323584443,1714096245179,-500.0,0.00011232,2]
[323584444,1714096245189,-500.0,0.00011232,2]
[323584445,1714096245198,-500.0,0.00011232,2]
[323584446,1714096245208,-332.77774277,0.00011232,2]
[323584447,1714096245225,-500.0,0.00011232,2]
[323584448,1714096245234,-500.0,0.00011232,2]
[323584449,1714096245244,-941.72,0.00011232,2]
[323584450,1714096245255,-500.0,0.00011232,2]
[323584451,1714096245266,-586.1281166,0.00011232,2]
[323584452,1714096245276,-500.0,0.00011232,2]
[323584453,1714096245286,-500.0,0.00011232,2]
[323584454,1714096245295,-500.0,0.00011232,2]
[323584455,1714096245306,-500.0,0.00011232,2]
[323584456,1714096245316,-512.15127163,0.00011232,2]
[323584457,1714096245326,-506.57,0.00011232,2]
[323584458,1714096245335,-500.0,0.00011232,2]
[323584459,1714096245346,-500.0,0.00011232,2]
[323584460,1714096245356,-500.0,0.00011232,2]
[323584461,1714096245366,-799.07,0.00011232,2]
[323584462,1714096245376,-500.0,0.00011232,2]
[323584463,1714096245386,-500.0,0.00011232,2]
[323584464,1714096245396,-500.0,0.00011232,2]
[323584465,1714096245406,-500.0,0.00011232,2]
[323584466,1714096245416,-500.0,0.00011232,2]
[323584467,1714096245425,-500.0,0.00011232,2]
[323584468,1714096245436,-608.3,0.00011232,2]
[323584469,1714096245446,-500.0,0.00011232,2]
[323584470,1714096245455,-500.0,0.00011232,2]
[323584471,1714096245470,-500.0,0.00011232,2]
[323584472,1714096245480,-500.0,0.00011232,2]
[323584473,1714096245490,-500.0,0.00011232,2]
[323584474,1714096245500,-500.0,0.00011232,2]
[323584475,1714096245510,-500.0,0.00011232,2]
[323584476,1714096245520,-500.0,0.00011232,2]
[323584477,1714096245530,-500.0,0.00011232,2]
[323584478,1714096245539,-521.67031906,0.00011232,2]
[323584479,1714096245549,-1048.12,0.00011232,2]
[323584480,1714096245558,-500.0,0.00011232,2]
[323584481,1714096245568,-500.0,0.00011232,2]
[323584482,1714096245578,-507.00883653,0.00011232,2]
[323584483,1714096245587,-500.0,0.00011232,2]
[323584484,1714096245596,-500.0,0.00011232,2]
[323584485,1714096245605,-354.42,0.00011232,2]
[323584486,1714096245615,-500.0,0.00011232,2]
[323584487,1714096245624,-297.26761238,0.00011232,2]
[323584488,1714096245634,-500.0,0.00011232,2]
[323584489,1714096245643,-922.97,0.00011232,2]
[323584490,1714096245653,-844.84,0.00011232,2]
[323584491,1714096245662,-663.9,0.00011232,2]
[323584492,1714096245671,-500.0,0.00011232,2]
[323584493,1714096245681,-500.0,0.00011232,2]
[323584494,1714096245691,-500.0,0.00011232,2]
[323584495,1714096245700,-500.0,0.00011232,2]
[323584496,1714096245710,-500.0,0.00011232,2]
[323584497,1714096245722,-500.0,0.00011232,2]
[323584498,1714096245732,-500.0,0.00011232,2]
[323584499,1714096245741,-500.0,0.00011232,2]
[323584500,1714096245751,-730.39,0.00011232,2]
[323584501,1714096245760,-516.88,0.00011232,2]
[323584502,1714096245770,-500.0,0.00011232,2]
[323584503,1714096245779,-500.0,0.00011232,2]
[323584504,1714096245789,-500.0,0.00011232,2]
[323584505,1714096245799,-765.5,0.00011232,2]
[323584506,1714096245809,-500.0,0.00011232,2]
[323584507,1714096245819,-562.73,0.00011232,2]
[323584508,1714096245828,-502.55291483,0.00011232,2]
[323584509,1714096245838,-860.79,0.00011232,2]
[323584510,1714096245848,-609.89,0.00011232,2]
[323584511,1714096245858,-500.0,0.00011232,2]
[323584512,1714096245868,-500.0,0.00011232,2]
[323584513,1714096245878,-500.0,0.00011232,2]
[323584514,1714096245887,-500.0,0.00011232,2]
[323584515,1714096245898,-500.0,0.00011232,2]
[323584516,1714096245907,-525.2588074,0.00011232,2]
[323584517,1714096245917,-500.0,0.00011232,2]
[323584518,1714096245927,-500.0,0.00011232,2]
[323584519,1714096245937,-500.0,0.00011232,2]
[323584521,1714096245947,-500.0,0.00011232,2]
[323584523,1714096245957,-500.0,0.00011232,2]
[323584525,1714096245968,-500.0,0.00011232,2]
[323584526,1714096245977,-500.0,0.00011232,2]
[323584527,1714096245987,-500.0,0.00011232,2]
[323584529,1714096245997,-500.0,0.00011232,2]
[323584530,1714096246007,-500.0,0.00011232,2]
[323584532,1714096246016,-500.0,0.00011232,2]
[323584533,1714096246026,-500.0,0.00011232,2]
[323584534,1714096246036,-500.0,0.00011232,2]
[323584535,1714096246046,-500.0,0.00011232,2]
[323584537,1714096246056,-500.0,0.00011232,2]
[323584538,1714096246066,-500.0,0.00011232,2]
[323584539,1714096246076,-500.0,0.00011232,2]
[323584540,1714096246086,-500.0,0.00011232,2]
[323584541,1714096246096,-858.9,0.00011232,2]
[323584542,1714096246105,-784.93,0.00011232,2]
[323584543,1714096246115,-500.0,0.00011232,2]
[323584544,1714096246126,-500.0,0.00011232,2]
[323584545,1714096246135,-500.0,0.00011232,2]
[323584546,1714096246145,-500.0,0.00011232,2]
[323584547,1714096246156,-500.0,0.00011232,2]
[323584548,1714096246165,-500.0,0.00011232,2]
[323584549,1714096246175,-500.0,0.00011232,2]
[323584550,1714096246185,-500.0,0.00011232,2]
[323584551,1714096246195,-500.0,0.00011232,2]
[323584552,1714096246204,-680.49,0.00011232,2]
[323584553,1714096246216,-500.0,0.00011232,2]
[323584554,1714096246225,-572.74466621,0.00011232,2]
[323584555,1714096246235,-500.0,0.00011232,2]
[323584556,1714096246246,-500.0,0.00011232,2]
[323584557,1714096246256,-500.0,0.00011232,2]
[323584558,1714096246267,-500.0,0.00011232,2]
[323584559,1714096246278,-500.0,0.00011232,2]
[323584560,1714096246288,-500.0,0.00011232,2]
[323584561,1714096246298,-758.13,0.00011232,2]
[323584562,1714096246308,-729.88,0.00011232,2]
[323584563,1714096246318,-500.0,0.00011232,2]
[323584564,1714096246328,-500.0,0.00011232,2]
[323584565,1714096246338,-638.66558546,0.00011232,2]
[323584566,1714096246348,-500.0,0.00011232,2]
[323584567,1714096246358,-500.0,0.00011232,2]
[323584568,1714096246369,-500.0,0.00011232,2]
[323584569,1714096246378,-500.0,0.00011232,2]
[323584570,1714096246388,-500.0,0.00011232,2]
[323584571,1714096246398,-504.85904167,0.00011232,2]
[323584572,1714096246408,-500.0,0.00011232,2]
[323584573,1714096246418,-500.0,0.00011232,2]
[323584574,1714096246428,-500.0,0.00011232,2]
[323584575,1714096246438,-500.0,0.00011232,2]
[323584576,1714096246447,-500.0,0.00011232,2]
[323584577,1714096246457,-1229.51,0.00011232,2]
[323584578,1714096246469,-500.0,0.00011232,2]
[323584579,1714096246479,-500.0,0.00011232,2]
[323584580,1714096246489,-527.69,0.00011232,2]
[323584581,1714096246499,-500.75,0.00011232,2]
[323584582,1714096246509,-500.0,0.00011232,2]
[323584583,1714096246519,-822.14,0.00011232,2]
[323584584,1714096246529,-1008.32,0.00011232,2]
[323584585,1714096246538,-500.0,0.00011232,2]
[323584586,1714096246548,-500.0,0.00011232,2]
[323584587,1714096246558,-500.0,0.00011232,2]
[323584588,1714096246567,-504.58689129,0.00011232,2]
[323584589,1714096246577,-500.0,0.00011232,2]
[323584590,1714096246587,-500.0,0.00011232,2]
[323584591,1714096246597,-504.92211818,0.00011232,2]
[323584592,1714096246607,-500.0,0.00011232,2]
[323584593,1714096246616,-502.00353366,0.00011232,2]
[323584594,1714096246626,-500.0,0.00011232,2]
[323584595,1714096246636,-1149.52,0.00011232,2]
[323584596,1714096246646,-500.0,0.00011232,2]
[323584597,1714096246656,-500.0,0.00011232,2]
[323584598,1714096246665,-500.0,0.00011232,2]
[323584599,1714096246675,-500.0,0.00011232,2]
[323584600,1714096246686,-500.0,0.00011232,2]
[323584601,1714096246696,-500.0,0.00011232,2]
[323584602,1714096246706,-500.0,0.00011232,2]
[323584603,1714096246718,-500.0,0.00011232,2]
[323584604,1714096246729,-500.0,0.00011232,2]
[323584605,1714096246738,-500.0,0.00011232,2]
[323584606,1714096246748,-1587.09,0.00011232,2]
[323584607,1714096246760,-937.92,0.00011232,2]
[323584608,1714096246770,-500.0,0.00011232,2]
[323584609,1714096247038,-952.52,0.00011232,2]
[323584610,1714096247058,-522.4527548,0.00011232,2]
[323584611,1714096247068,-1248.24,0.00011232,2]
[323584612,1714096247077,-500.0,0.00011232,2]
[323584613,1714096247087,-500.0,0.00011232,2]
[323584614,1714096247096,-500.0,0.00011232,2]
[323584615,1714096247106,-500.0,0.00011232,2]
[323584616,1714096247115,-500.0,0.00011232,2]
[323584617,1714096247124,-500.0,0.00011232,2]
[323584618,1714096247133,-558.01,0.00011232,2]
[323584619,1714096247142,-500.0,0.00011232,2]
[323584620,1714096247151,-585.54661704,0.00011232,2]
[323584621,1714096247161,-641.54,0.00011232,2]
[323584622,1714096247170,-508.39020251,0.00011232,2]
[323584623,1714096247179,-1346.2,0.00011232,2]
[323584624,1714096247188,-500.0,0.00011232,2]
[323584625,1714096247198,-500.0,0.00011232,2]
[323584626,1714096247207,-500.0,0.00011232,2]
[323584627,1714096247218,-500.0,0.00011232,2]
[323584628,1714096247227,-681.39,0.00011232,2]
[323584629,1714096247236,-500.0,0.00011232,2]
[323584630,1714096247245,-8658.41391307,0.00011232,2]
[323584631,1714096247274,-1299.97148334,0.00011232,2]
[323584632,1714096247364,-1422.33460359,0.00011232,2]
[323584633,1714096247373,-832.29,0.00011232,2]
[323584634,1714096247382,-500.0,0.00011232,2]
[323584635,1714096247392,-500.0,0.00011232,2]
[323584636,1714096247401,-500.0,0.00011232,2]
[323584637,1714096247410,-500.0,0.00011232,2]
[323584638,1714096247420,-500.0,0.00011232,2]
[323584639,1714096247429,-500.0,0.00011232,2]
[323584640,1714096247438,-55.37691575,0.00011232,2]
[323584641,1714096247458,-444.62308425,0.00011232,2]
[323584642,1714096247469,-21.98573917,0.00011232,2]
[323584643,1714096247481,-955.42263946,0.00011232,2]
[323584644,1714096247958,-500.0,0.00010958,2]
[323584645,1714096247969,-149.84030334,0.00010958,2]